[Event "NJSK 2024 Cm"]
[Site "Groningen, Netherlands"]
[Date "2024.04.28"]
[Round "2.7"]
[White "Jermin, Ayleanna"]
[Black "Regterschot, Frederieke"]
[Result "0-1"]
[TimeControl "90min/40moves + 30min + 30sec/move"]
[WhiteElo "1249"]
[BlackElo "1292"]

1. e4 {[%clk 01:30:57]} {[%emt 00:00:02]} e5 {[%clk 01:30:53]} {[%emt
00:00:08]} 2. Nf3 {[%clk 01:31:02]} {[%emt 00:00:24]} Nc6 {[%clk 01:31:15]}
{[%emt 00:00:08]} 3. Bb5 {[%clk 01:31:23]} {[%emt 00:00:10]} Nf6 {[%clk
01:31:24]} {[%emt 00:00:20]} 4. Nc3 {[%clk 01:30:40]} {[%emt 00:01:14]} d6
{[%clk 01:31:34]} {[%emt 00:00:20]} 5. d3 {[%clk 01:30:33]} {[%emt 00:00:36]}
Bg4 {[%clk 01:31:36]} {[%emt 00:00:28]} 6. h3 {[%clk 01:30:14]} {[%emt
00:00:50]} Bh5 {[%clk 01:31:59]} {[%emt 00:00:07]} 7. g4 {[%clk 01:29:55]}
{[%emt 00:00:47]} Bg6 {[%clk 01:32:13]} {[%emt 00:00:16]} 8. Bg5 {[%clk
01:29:34]} {[%emt 00:00:52]} Be7 {[%clk 01:32:11]} {[%emt 00:00:31]} 9. d4
{[%clk 01:25:54]} {[%emt 00:04:10]} a6 {[%clk 01:30:56]} {[%emt 00:01:46]} 10.
Ba4 {[%clk 01:23:53]} {[%emt 00:02:31]} b5 {[%clk 01:31:00]} {[%emt 00:00:27]}
11. Bb3 {[%clk 01:23:45]} {[%emt 00:00:37]} Nxe4 {[%clk 01:30:42]} {[%emt
00:00:48]} 12. Bxe7 {[%clk 01:22:45]} {[%emt 00:01:31]} Qxe7 {[%clk 01:30:52]}
{[%emt 00:00:20]} 13. Bd5 {[%clk 01:19:36]} {[%emt 00:03:38]} Nxc3 {[%clk
01:31:10]} {[%emt 00:00:12]} 14. bxc3 {[%clk 01:19:34]} {[%emt 00:00:31]} exd4+
{[%clk 01:31:14]} {[%emt 00:00:27]} 15. Qe2 {[%clk 01:19:20]} {[%emt 00:00:44]}
Qxe2+ {[%clk 01:31:30]} {[%emt 00:00:14]} 16. Kxe2 {[%clk 01:19:37]} {[%emt
00:00:13]} Kd7 {[%clk 01:31:54]} {[%emt 00:00:06]} 17. cxd4 {[%clk 01:19:14]}
{[%emt 00:00:53]} Rae8+ {[%clk 01:31:52]} {[%emt 00:00:32]} 18. Kf1 {[%clk
01:19:03]} {[%emt 00:00:41]} Nb4 {[%clk 01:31:48]} {[%emt 00:00:35]} 19. Bb7
{[%clk 01:18:16]} {[%emt 00:01:17]} Bxc2 {[%clk 01:31:12]} {[%emt 00:01:06]} 20.
Rc1 {[%clk 01:16:41]} {[%emt 00:02:04]} Be4 {[%clk 01:31:16]} {[%emt 00:00:27]}
21. Bxe4 {[%clk 01:14:42]} {[%emt 00:02:28]} Rxe4 {[%clk 01:31:34]} {[%emt
00:00:11]} 22. Kg2 {[%clk 01:13:29]} {[%emt 00:01:43]} Nxa2 {[%clk 01:30:22]}
{[%emt 00:01:43]} 23. Rce1 {[%clk 01:13:13]} {[%emt 00:00:46]} Re7 {[%clk
01:28:43]} {[%emt 00:02:09]} 24. Rxe7+ {[%clk 01:12:07]} {[%emt 00:01:36]} Kxe7
{[%clk 01:29:01]} {[%emt 00:00:11]} 25. Re1+ {[%clk 01:12:04]} {[%emt
00:00:34]} Kd7 {[%clk 01:29:22]} {[%emt 00:00:09]} 26. Ng5 {[%clk 01:12:16]}
{[%emt 00:00:19]} f6 {[%clk 01:28:31]} {[%emt 00:01:20]} 27. Ne6 {[%clk
01:10:12]} {[%emt 00:02:34]} Re8 {[%clk 01:25:10]} {[%emt 00:03:50]} 28. d5
{[%clk 01:08:48]} {[%emt 00:01:55]} Nb4 {[%clk 01:23:31]} {[%emt 00:02:09]} 29.
Ra1 {[%clk 01:08:02]} {[%emt 00:01:16]} Nxd5 {[%clk 01:22:47]} {[%emt
00:01:15]} 30. Nxg7 {[%clk 01:08:03]} {[%emt 00:00:28]} Rg8 {[%clk 01:22:43]}
{[%emt 00:00:34]} 31. Nf5 {[%clk 01:07:43]} {[%emt 00:00:50]} Nb4 {[%clk
01:21:28]} {[%emt 00:01:46]} 32. Ng3 {[%clk 01:07:12]} {[%emt 00:01:01]} c5
{[%clk 01:20:44]} {[%emt 00:01:14]} 33. Ne4 {[%clk 01:07:20]} {[%emt 00:00:22]}
Rg6 {[%clk 01:15:13]} {[%emt 00:06:01]} 34. Rd1 {[%clk 01:07:05]} {[%emt
00:00:45]} f5 {[%clk 01:15:02]} {[%emt 00:00:41]} 35. Nxc5+ {[%clk 01:06:25]}
{[%emt 00:01:09]} Kc6 {[%clk 01:14:58]} {[%emt 00:00:36]} 36. Nb3 {[%clk
01:05:44]} {[%emt 00:01:11]} fxg4 {[%clk 01:14:59]} {[%emt 00:00:29]} 37. Na5+
{[%clk 01:05:30]} {[%emt 00:00:44]} Kb6 {[%clk 01:15:08]} {[%emt 00:00:21]} 38.
Nb3 {[%clk 01:04:31]} {[%emt 00:01:28]} gxh3+ {[%clk 01:15:16]} {[%emt
00:00:22]} 39. Kxh3 {[%clk 01:04:41]} {[%emt 00:00:19]} Rf6 {[%clk 01:15:12]}
{[%emt 00:00:35]} 40. Kg3 {[%clk 01:03:48]} {[%emt 00:01:22]} a5 {[%clk
01:14:35]} {[%emt 00:01:08]} 41. Ra1 {[%clk 01:03:21]} {[%emt 00:00:56]} a4
{[%clk 01:14:51]} {[%emt 00:00:15]} 42. Nd2 {[%clk 01:03:32]} {[%emt 00:00:18]}
d5 {[%clk 01:13:55]} {[%emt 00:01:27]} 43. f4 {[%clk 01:03:35]} {[%emt
00:00:28]} h5 {[%clk 01:14:15]} {[%emt 00:00:10]} 44. Nf3 {[%clk 01:03:30]}
{[%emt 00:00:34]} Nd3 {[%clk 01:14:32]} {[%emt 00:00:14]} 45. Ra3 {[%clk
01:03:24]} {[%emt 00:00:35]} Nxf4 {[%clk 01:13:57]} {[%emt 00:01:05]} 46. Ne5
{[%clk 01:03:24]} {[%emt 00:00:30]} Ne2+ {[%clk 01:13:34]} {[%emt 00:00:53]} 47.
Kh4 {[%clk 01:03:29]} {[%emt 00:00:25]} Ka5 {[%clk 01:13:26]} {[%emt 00:00:38]}
48. Rd3 {[%clk 01:02:39]} {[%emt 00:01:20]} Rf4+ {[%clk 01:12:12]} {[%emt
00:01:45]} 49. Kh3 {[%clk 01:01:55]} {[%emt 00:01:12]} Re4 {[%clk 01:11:09]}
{[%emt 00:01:34]} 50. Kh2 {[%clk 01:01:40]} {[%emt 00:00:44]} Rxe5 {[%clk
01:11:20]} {[%emt 00:00:21]} 51. Rd2 {[%clk 01:01:06]} {[%emt 00:01:03]} Nf4
{[%clk 01:11:46]} {[%emt 00:00:05]} 52. Kg3 {[%clk 01:01:18]} {[%emt 00:00:17]}
Ng6 {[%clk 01:11:48]} {[%emt 00:00:28]} 53. Rc2 {[%clk 01:01:26]} {[%emt
00:00:22]} h4+ {[%clk 01:11:25]} {[%emt 00:00:53]} 54. Kh3 {[%clk 01:01:43]}
{[%emt 00:00:12]} Ne7 {[%clk 01:11:37]} {[%emt 00:00:19]} 55. Rc7 {[%clk
01:01:55]} {[%emt 00:00:18]} Re4 {[%clk 01:11:48]} {[%emt 00:00:20]} 56. Ra7+
{[%clk 01:01:55]} {[%emt 00:00:29]} Kb4 {[%clk 01:12:12]} {[%emt 00:00:06]} 57.
Kg2 {[%clk 01:02:10]} {[%emt 00:00:15]} a3 {[%clk 01:12:37]} {[%emt 00:00:06]}
58. Kf3 {[%clk 01:02:32]} {[%emt 00:00:07]} Kb3 {[%clk 01:12:50]} {[%emt
00:00:18]} 59. Rb7 {[%clk 01:02:46]} {[%emt 00:00:15]} b4 {[%clk 01:13:14]}
{[%emt 00:00:07]} 60. Ra7 {[%clk 01:03:08]} {[%emt 00:00:07]} Kb2 {[%clk
01:13:34]} {[%emt 00:00:10]} 61. Rb7 {[%clk 01:03:33]} {[%emt 00:00:05]} a2
{[%clk 01:13:58]} {[%emt 00:00:07]} 62. Ra7 {[%clk 01:03:54]} {[%emt 00:00:09]}
a1=Q 63. Rxa1 Kxa1 {[%clk 01:14:08]} {[%emt 00:00:13]} 64. Kf2 {[%clk
01:04:11]} {[%emt 00:00:12]} b3 {[%clk 01:14:34]} {[%emt 00:00:06]} 65. Kg2
{[%clk 01:04:32]} {[%emt 00:00:08]} b2 {[%clk 01:14:59]} {[%emt 00:00:06]} 66.
Kf2 {[%clk 01:04:54]} {[%emt 00:00:08]} b1=Q {[%clk 01:15:11]} {[%emt
00:00:17]} 67. Kf3 {[%clk 01:05:11]} {[%emt 00:00:13]} Qd3+ {[%clk 01:15:34]}
{[%emt 00:00:08]} 68. Kg2 {[%emt 00:00:15]} Re2+ {[%clk 01:16:00]} 69. Kf1
{[%clk 01:05:48]} {[%emt 00:00:12]} Qd1 {[%clk 01:16:20]} {[%emt 00:00:10]} 0-1

[Event "NJSK 2024 Cm"]
[Site "Groningen, Netherlands"]
[Date "2024.04.29"]
[Round "3.1"]
[White "Jorritsma, Eli Alia"]
[Black "Roebers, Bregje"]
[Result "0-1"]
[TimeControl "90min/40moves + 30min + 30sec/move"]
[WhiteElo "1777"]
[BlackElo "1829"]

1. Nf3 {[%clk 01:30:56]} {[%emt 00:00:04]} f5 {[%clk 01:30:44]} {[%emt
00:00:17]} 2. b3 {[%clk 01:31:04]} {[%emt 00:00:22]} Nf6 {[%clk 01:31:01]}
{[%emt 00:00:13]} 3. Bb2 {[%clk 01:31:11]} {[%emt 00:00:22]} g6 {[%clk
01:29:57]} {[%emt 00:01:35]} 4. e3 {[%clk 01:30:29]} {[%emt 00:01:12]} Bg7
{[%clk 01:29:05]} {[%emt 00:01:22]} 5. d4 {[%clk 01:30:23]} {[%emt 00:00:36]}
O-O {[%clk 01:26:36]} {[%emt 00:03:00]} 6. Be2 {[%clk 01:29:53]} {[%emt
00:00:58]} d6 {[%clk 01:24:12]} {[%emt 00:02:55]} 7. O-O {[%clk 01:26:00]}
{[%emt 00:04:22]} h6 {[%clk 01:17:56]} {[%emt 00:06:47]} 8. c4 {[%clk
01:18:12]} {[%emt 00:08:18]} Qe8 {[%clk 01:04:46]} {[%emt 00:13:40]} 9. Nbd2
{[%clk 01:13:39]} {[%emt 00:05:03]} Nbd7 {[%clk 01:01:57]} {[%emt 00:03:19]} 10.
d5 {[%clk 01:09:05]} {[%emt 00:05:04]} Nb8 {[%clk 00:45:09]} {[%emt 00:17:18]}
11. Qc2 {[%clk 01:04:09]} {[%emt 00:05:25]} e5 {[%clk 00:37:30]} {[%emt
00:08:09]} 12. dxe6 {[%clk 00:58:06]} {[%emt 00:06:34]} Bxe6 {[%clk 00:37:28]}
{[%emt 00:00:32]} 13. Nd4 {[%clk 00:57:08]} {[%emt 00:01:28]} Bd7 {[%clk
00:28:12]} {[%emt 00:09:45]} 14. Bf3 {[%clk 00:50:50]} {[%emt 00:06:49]} Nc6
{[%clk 00:25:47]} {[%emt 00:02:55]} 15. Rfe1 {[%clk 00:41:28]} {[%emt
00:09:52]} Qc8 {[%clk 00:14:10]} {[%emt 00:12:06]} 16. Rad1 {[%clk 00:37:03]}
{[%emt 00:04:56]} Ne5 {[%clk 00:08:47]} {[%emt 00:05:53]} 17. Be2 {[%clk
00:34:13]} {[%emt 00:03:20]} Bc6 {[%clk 00:06:51]} {[%emt 00:02:26]} 18. Nxc6
{[%clk 00:29:23]} {[%emt 00:05:20]} Nxc6 {[%clk 00:07:11]} {[%emt 00:00:10]} 19.
Nf3 {[%clk 00:28:37]} {[%emt 00:01:16]} Re8 {[%clk 00:06:36]} {[%emt 00:01:05]}
20. Nd4 {[%clk 00:26:23]} {[%emt 00:02:44]} Nxd4 {[%clk 00:05:37]} {[%emt
00:01:28]} 21. exd4 {[%clk 00:26:26]} {[%emt 00:00:27]} c6 {[%clk 00:05:12]}
{[%emt 00:00:56]} 22. Bf3 {[%clk 00:22:41]} {[%emt 00:04:15]} d5 {[%clk
00:04:44]} {[%emt 00:00:58]} 23. cxd5 {[%clk 00:19:16]} {[%emt 00:03:55]} Rxe1+
{[%clk 00:04:09]} {[%emt 00:01:04]} 24. Rxe1 {[%clk 00:19:36]} {[%emt
00:00:10]} cxd5 {[%clk 00:04:32]} {[%emt 00:00:07]} 25. Qc5 {[%clk 00:16:43]}
{[%emt 00:03:24]} Qxc5 {[%clk 00:03:34]} {[%emt 00:01:29]} 26. dxc5 {[%clk
00:17:08]} {[%emt 00:00:04]} Ne4 {[%clk 00:03:57]} {[%emt 00:00:07]} 27. Bxg7
{[%clk 00:16:47]} {[%emt 00:00:50]} Kxg7 {[%clk 00:04:23]} {[%emt 00:00:04]} 28.
Bxe4 {[%clk 00:15:52]} {[%emt 00:01:26]} fxe4 {[%clk 00:03:53]} {[%emt
00:00:59]} 29. Rd1 {[%clk 00:15:41]} {[%emt 00:00:41]} Rd8 {[%clk 00:04:09]}
{[%emt 00:00:14]} 30. Kf1 {[%clk 00:15:10]} {[%emt 00:01:01]} Kf6 {[%clk
00:04:28]} {[%emt 00:00:11]} 31. Ke2 {[%clk 00:15:21]} {[%emt 00:00:20]} Ke5
{[%clk 00:04:40]} {[%emt 00:00:18]} 32. b4 {[%clk 00:14:16]} {[%emt 00:01:35]}
d4 {[%clk 00:04:47]} {[%emt 00:00:22]} 33. g3 {[%clk 00:14:04]} {[%emt
00:00:42]} Rf8 {[%clk 00:04:27]} {[%emt 00:00:50]} 34. Rf1 {[%clk 00:13:18]}
{[%emt 00:01:16]} Rf3 {[%clk 00:04:29]} {[%emt 00:00:29]} 35. h3 {[%clk
00:11:51]} {[%emt 00:01:56]} Kd5 {[%clk 00:04:06]} {[%emt 00:00:53]} 36. Rb1
{[%clk 00:07:52]} {[%emt 00:04:29]} Rc3 {[%clk 00:04:03]} {[%emt 00:00:33]} 37.
Kd2 {[%clk 00:06:25]} {[%emt 00:01:57]} Ra3 {[%clk 00:03:35]} {[%emt 00:00:59]}
38. Rb2 {[%clk 00:05:56]} {[%emt 00:00:59]} a6 {[%clk 00:03:42]} {[%emt
00:00:23]} 39. Ke2 {[%clk 00:05:21]} {[%emt 00:01:04]} Kc4 {[%clk 00:03:30]}
{[%emt 00:00:43]} 40. Kd2 {[%clk 00:04:28]} {[%emt 00:01:22]} Rc3 {[%clk
00:01:46]} {[%emt 00:02:14]} 41. h4 {[%clk 00:02:55]} {[%emt 00:02:03]} Ra3
{[%clk 00:01:09]} {[%emt 00:01:08]} 42. Ke2 {[%clk 00:30:00]} {[%emt 00:02:55]}
Kc3 {[%clk 00:24:53]} {[%emt 00:06:45]} 43. Rd2 {[%clk 00:28:17]} {[%emt
00:02:42]} Ra4 {[%clk 00:23:58]} {[%emt 00:01:26]} 44. Kd1 {[%clk 00:23:58]}
{[%emt 00:04:49]} Rxb4 {[%clk 00:21:59]} {[%emt 00:02:29]} 45. Rc2+ {[%clk
00:23:54]} {[%emt 00:00:34]} Kd3 {[%clk 00:22:23]} {[%emt 00:00:06]} 46. Rd2+
{[%clk 00:24:15]} {[%emt 00:00:10]} Kc4 {[%clk 00:22:47]} {[%emt 00:00:06]} 47.
Rc2+ {[%clk 00:24:37]} {[%emt 00:00:08]} Kd5 {[%clk 00:23:09]} {[%emt
00:00:08]} 48. Ke1 {[%clk 00:19:52]} {[%emt 00:05:14]} Rb5 {[%clk 00:20:36]}
{[%emt 00:03:03]} 49. Kd2 {[%clk 00:16:40]} {[%emt 00:03:43]} Rxc5 {[%clk
00:20:03]} {[%emt 00:01:02]} 50. Rb2 {[%clk 00:16:23]} {[%emt 00:00:47]} b5
{[%clk 00:20:18]} {[%emt 00:00:16]} 51. a3 {[%clk 00:16:22]} {[%emt 00:00:32]}
Rc3 {[%clk 00:19:17]} {[%emt 00:01:30]} 52. Ra2 {[%clk 00:16:03]} {[%emt
00:00:49]} Kc4 {[%clk 00:19:06]} {[%emt 00:00:40]} 53. a4 {[%clk 00:15:33]}
{[%emt 00:01:01]} b4 {[%clk 00:18:33]} {[%emt 00:01:03]} 54. Ra1 {[%clk
00:15:37]} {[%emt 00:00:26]} b3 {[%clk 00:18:05]} {[%emt 00:00:57]} 55. Rb1
{[%clk 00:15:33]} {[%emt 00:00:35]} Rc2+ {[%clk 00:18:13]} {[%emt 00:00:21]} 56.
Ke1 {[%clk 00:15:48]} {[%emt 00:00:15]} b2 {[%clk 00:18:14]} {[%emt 00:00:29]}
0-1

[Event "NJSK 2024 Cm"]
[Site "Groningen, Netherlands"]
[Date "2024.04.29"]
[Round "3.2"]
[White "Hardeman, Imara"]
[Black "Luong, Thao"]
[Result "0-1"]
[TimeControl "90min/40moves + 30min + 30sec/move"]
[WhiteElo "1676"]
[BlackElo "1687"]

1. e4 {[%clk 01:30:56]} {[%emt 00:00:04]} e5 {[%clk 01:30:58]} {[%emt
00:00:02]} 2. Nf3 {[%clk 01:31:23]} {[%emt 00:00:03]} Nc6 {[%clk 01:31:18]}
{[%emt 00:00:10]} 3. c3 {[%clk 01:31:33]} {[%emt 00:00:21]} d5 {[%clk
01:30:50]} {[%emt 00:00:58]} 4. Qa4 {[%clk 01:31:59]} {[%emt 00:00:04]} f6
{[%clk 01:29:56]} {[%emt 00:01:24]} 5. d3 {[%clk 01:32:26]} {[%emt 00:00:03]}
Be6 {[%clk 01:28:40]} {[%emt 00:01:45]} 6. Be2 {[%clk 01:31:56]} {[%emt
00:01:00]} Bc5 {[%clk 01:27:08]} {[%emt 00:02:02]} 7. O-O {[%clk 01:30:26]}
{[%emt 00:02:01]} Nge7 {[%clk 01:27:11]} {[%emt 00:00:27]} 8. Nbd2 {[%clk
01:25:49]} {[%emt 00:05:07]} O-O {[%clk 01:26:31]} {[%emt 00:01:08]} 9. Qc2
{[%clk 01:24:53]} {[%emt 00:01:28]} Qd6 {[%clk 01:25:39]} {[%emt 00:01:19]} 10.
a4 {[%clk 01:19:56]} {[%emt 00:05:30]} a5 {[%clk 01:25:16]} {[%emt 00:00:52]}
11. Nb3 {[%clk 01:19:46]} {[%emt 00:00:40]} Bb6 {[%clk 01:22:10]} {[%emt
00:03:35]} 12. Bd2 {[%clk 01:17:46]} {[%emt 00:02:32]} Rad8 {[%clk 01:13:49]}
{[%emt 00:08:51]} 13. Rfe1 {[%clk 01:09:25]} {[%emt 00:08:51]} Kh8 {[%clk
01:09:00]} {[%emt 00:05:17]} 14. Rac1 {[%clk 01:04:48]} {[%emt 00:05:08]} dxe4
{[%clk 00:55:02]} {[%emt 00:14:27]} 15. dxe4 {[%clk 01:03:22]} {[%emt
00:01:58]} g5 {[%clk 00:51:34]} {[%emt 00:03:57]} 16. Rcd1 {[%clk 00:55:26]}
{[%emt 00:08:26]} Bf7 {[%clk 00:42:38]} {[%emt 00:09:25]} 17. Be3 {[%clk
00:47:10]} {[%emt 00:08:47]} Qe6 {[%clk 00:41:26]} {[%emt 00:01:42]} 18. Nc5
{[%clk 00:44:31]} {[%emt 00:03:10]} Qc8 {[%clk 00:37:04]} {[%emt 00:04:50]} 19.
Rxd8 {[%clk 00:39:25]} {[%emt 00:05:37]} Rxd8 {[%clk 00:36:13]} {[%emt
00:01:20]} 20. Rd1 {[%clk 00:39:14]} {[%emt 00:00:42]} Rd6 {[%clk 00:31:58]}
{[%emt 00:04:44]} 21. Rd3 {[%clk 00:30:36]} {[%emt 00:09:09]} Bg6 {[%clk
00:26:55]} {[%emt 00:05:32]} 22. Nd2 {[%clk 00:27:29]} {[%emt 00:03:38]} h5
{[%clk 00:22:47]} {[%emt 00:04:37]} 23. Ncb3 {[%clk 00:26:51]} {[%emt
00:01:10]} Bxe3 {[%clk 00:19:27]} {[%emt 00:03:49]} 24. Rxe3 {[%clk 00:26:45]}
{[%emt 00:00:36]} Nd5 {[%clk 00:17:59]} {[%emt 00:01:59]} 25. Rd3 {[%clk
00:22:43]} {[%emt 00:04:31]} Ndb4 {[%clk 00:16:06]} {[%emt 00:02:23]} 26. cxb4
{[%clk 00:20:49]} {[%emt 00:02:24]} Nxb4 {[%clk 00:16:24]} {[%emt 00:00:11]} 27.
Qb1 {[%clk 00:20:08]} {[%emt 00:01:12]} Nxd3 {[%clk 00:16:43]} {[%emt
00:00:11]} 28. Bxd3 {[%clk 00:20:26]} {[%emt 00:00:12]} Qd7 {[%clk 00:15:29]}
{[%emt 00:01:44]} 29. Nc5 {[%clk 00:17:40]} {[%emt 00:03:16]} Qc6 {[%clk
00:13:40]} {[%emt 00:02:19]} 30. Qc2 {[%clk 00:13:15]} {[%emt 00:04:55]} b6
{[%clk 00:11:30]} {[%emt 00:02:39]} 31. Bb5 {[%clk 00:11:32]} {[%emt 00:02:14]}
Qxc5 {[%clk 00:11:27]} {[%emt 00:00:32]} 32. Qxc5 {[%clk 00:08:26]} {[%emt
00:03:37]} bxc5 {[%clk 00:11:45]} {[%emt 00:00:11]} 33. Nb3 {[%clk 00:08:21]}
{[%emt 00:00:36]} Rd1+ {[%clk 00:11:29]} {[%emt 00:00:45]} 34. Bf1 {[%clk
00:08:40]} {[%emt 00:00:11]} Bxe4 {[%clk 00:11:10]} {[%emt 00:00:49]} 35. Nxc5
{[%clk 00:07:46]} {[%emt 00:01:25]} Bd5 {[%clk 00:10:03]} {[%emt 00:01:37]} 36.
b3 {[%clk 00:07:12]} {[%emt 00:01:04]} Rb1 {[%clk 00:09:34]} {[%emt 00:00:58]}
37. g3 {[%clk 00:05:49]} {[%emt 00:01:54]} h4 {[%clk 00:08:06]} {[%emt
00:01:58]} 38. gxh4 {[%clk 00:05:14]} {[%emt 00:01:06]} gxh4 {[%clk 00:08:28]}
{[%emt 00:00:07]} 39. h3 {[%clk 00:05:07]} {[%emt 00:00:38]} Bxb3 {[%clk
00:08:19]} {[%emt 00:00:38]} 40. Nxb3 {[%clk 00:04:28]} {[%emt 00:01:08]} Rxb3
{[%clk 00:08:39]} {[%emt 00:00:10]} 41. Bc4 {[%clk 00:04:19]} {[%emt 00:00:40]}
Rxh3 {[%clk 00:08:30]} {[%emt 00:00:39]} 0-1

[Event "NJSK 2024 Cm"]
[Site "Groningen, Netherlands"]
[Date "2024.04.29"]
[Round "3.3"]
[White "Elangkumaran, Anumitra"]
[Black "Koorevaar, Sarah-Joy"]
[Result "1-0"]
[TimeControl "90min/40moves + 30min + 30sec/move"]
[WhiteElo "1605"]
[BlackElo "1544"]

1. e4 {[%clk 01:30:58]} {[%emt 00:00:01]} c5 {[%clk 01:30:58]} {[%emt
00:00:03]} 2. Nc3 {[%clk 01:31:22]} {[%emt 00:00:05]} e6 {[%clk 01:31:25]}
{[%emt 00:00:03]} 3. f4 {[%clk 01:31:46]} {[%emt 00:00:07]} Nc6 {[%clk
01:31:50]} {[%emt 00:00:05]} 4. Bb5 {[%clk 01:32:08]} {[%emt 00:00:07]} Qc7
{[%clk 01:32:11]} {[%emt 00:00:09]} 5. Bxc6 {[%clk 01:31:17]} {[%emt 00:01:21]}
Qxc6 {[%clk 01:32:32]} {[%emt 00:00:09]} 6. Nf3 {[%clk 01:30:26]} {[%emt
00:01:21]} a6 {[%clk 01:32:56]} {[%emt 00:00:07]} 7. d3 {[%clk 01:29:39]}
{[%emt 00:01:17]} b5 {[%clk 01:33:19]} {[%emt 00:00:07]} 8. b3 {[%clk
01:28:08]} {[%emt 00:02:00]} b4 {[%clk 01:31:54]} {[%emt 00:01:55]} 9. Ne2
{[%clk 01:27:20]} {[%emt 00:01:17]} Nf6 {[%clk 01:32:05]} {[%emt 00:00:20]} 10.
O-O {[%clk 01:26:58]} {[%emt 00:00:52]} Be7 {[%clk 01:32:05]} {[%emt 00:00:30]}
11. Bb2 {[%clk 01:24:24]} {[%emt 00:03:04]} O-O {[%clk 01:32:20]} {[%emt
00:00:15]} 12. Qe1 {[%clk 01:23:09]} {[%emt 00:01:46]} Bb7 {[%clk 01:31:06]}
{[%emt 00:01:44]} 13. Qg3 {[%clk 01:19:03]} {[%emt 00:04:34]} d5 {[%clk
01:24:07]} {[%emt 00:07:30]} 14. e5 {[%clk 01:15:02]} {[%emt 00:04:31]} Nd7
{[%clk 01:24:30]} {[%emt 00:00:07]} 15. c3 {[%clk 01:11:38]} {[%emt 00:03:54]}
bxc3 {[%clk 01:22:57]} {[%emt 00:02:04]} 16. Nxc3 {[%clk 01:11:45]} {[%emt
00:00:22]} a5 {[%clk 01:22:17]} {[%emt 00:01:10]} 17. Nh4 {[%clk 01:07:45]}
{[%emt 00:04:30]} c4 {[%clk 01:17:55]} {[%emt 00:04:52]} 18. f5 {[%clk
01:05:21]} {[%emt 00:02:54]} Bxh4 {[%clk 01:09:09]} {[%emt 00:09:16]} 19. Qxh4
{[%clk 01:05:22]} {[%emt 00:00:29]} exf5 {[%emt 00:09:58]} 20. d4 {[%clk
00:56:41]} {[%emt 00:09:09]} Nxe5 {[%clk 00:53:09]} {[%emt 00:07:04]} 21. dxe5
{[%clk 00:54:33]} {[%emt 00:02:38]} d4 {[%clk 00:53:34]} {[%emt 00:00:06]} 22.
Qg3 {[%clk 00:53:40]} {[%emt 00:01:22]} dxc3 {[%clk 00:53:46]} {[%emt
00:00:17]} 23. Bxc3 {[%clk 00:53:55]} {[%emt 00:00:16]} cxb3 {[%clk 00:49:41]}
{[%emt 00:04:36]} 24. axb3 {[%clk 00:53:25]} {[%emt 00:01:00]} Rfd8 {[%clk
00:48:33]} {[%emt 00:01:37]} 25. e6 {[%clk 00:52:11]} {[%emt 00:01:44]} g6
{[%clk 00:45:58]} {[%emt 00:03:05]} 26. exf7+ {[%clk 00:51:09]} {[%emt
00:01:31]} Kxf7 {[%clk 00:45:26]} {[%emt 00:01:04]} 27. Rxf5+ {[%clk 00:48:56]}
{[%emt 00:02:43]} gxf5 {[%clk 00:45:22]} {[%emt 00:00:34]} 28. Qg7+ {[%clk
00:49:16]} {[%emt 00:00:10]} Ke8 {[%clk 00:44:14]} {[%emt 00:01:37]} 29. Re1+
{[%clk 00:47:18]} {[%emt 00:02:28]} Qe4 {[%clk 00:44:37]} {[%emt 00:00:07]} 30.
Rxe4+ {[%clk 00:45:09]} {[%emt 00:02:39]} Bxe4 {[%clk 00:45:02]} {[%emt
00:00:05]} 31. Bf6 {[%emt 00:07:14]} Rd1+ {[%clk 00:39:06]} 32. Kf2 {[%clk
00:45:09]} {[%emt 00:00:12]} Rd2+ {[%clk 00:39:12]} {[%emt 00:00:24]} 33. Ke1
{[%clk 00:45:34]} {[%emt 00:00:04]} Ra7 {[%clk 00:37:22]} {[%emt 00:02:20]} 34.
Qxa7 {[%clk 00:44:09]} {[%emt 00:01:55]} Rd7 {[%clk 00:37:48]} {[%emt
00:00:05]} 35. Qxa5 {[%clk 00:43:42]} {[%emt 00:00:56]} Kf7 {[%clk 00:38:01]}
{[%emt 00:00:17]} 36. Qe5 {[%clk 00:43:23]} {[%emt 00:00:49]} 1-0